bitfinex-derivatives/quotes_SOLF0:USTF0_20241215
["timestamp","ask_amount","ask_price","bid_price","bid_amount"]
[1734306739796,12.48267752,225.4,225.28,2.8519]
[1734306740388,12.48267752,225.4,225.28,5.0718]
[1734306740588,12.48267752,225.4,225.28,2.8519]
[1734306741399,12.48267752,225.4,225.32,5.36667549]
[1734306741694,9.28267752,225.37,225.25,3.2]
[1734306741897,1.3969,225.36,225.17,4.551]
[1734306742196,1.3969,225.36,225.19,9.28267752]
[1734306742197,9.28267752,225.34,225.19,9.28267752]
[1734306742487,9.28267752,225.34,225.19,12.48267752]
[1734306742488,12.48267752,225.34,225.19,12.48267752]
[1734306742900,2.2198,225.3,225.2,2.2207]
[1734306743103,9.28267752,225.28,225.13,3.2]
[1734306743292,12.48267752,225.28,225.14,8.21885885]
[1734306743493,12.48267752,225.28,225.13,3.2]
[1734306743694,12.48267752,225.28,225.17,2.221]
[1734306744391,12.48267752,225.28,225.15,2.2212]
[1734306744595,12.48267752,225.28,225.18,5.29986158]
[1734306744791,9.28267752,225.28,225.18,5.29986158]
[1734306745192,2.2201,225.27,225.18,5.29986158]
[1734306745894,2.2201,225.27,225.18,7.52076158]
[1734306746594,2.2202,225.26,225.18,7.52076158]
[1734306746798,9.28267752,225.28,225.18,5.29986158]
[1734306746992,1.4453,225.25,225.18,5.29986158]
[1734306747398,2.2204,225.24,225.18,5.29986158]
[1734306747798,10.72797752,225.25,225.12,1.5199]
[1734306748002,4.6685,225.24,225.12,1.5199]
[1734306749200,1.4453,225.25,225.14,9.28267752]
[1734306749500,9.28267752,225.28,225.15,3.22]
[1734306749701,3.22,225.3,225.15,3.22]
[1734306750096,3.22,225.3,225.17,9.28267752]
[1734306750698,2.2201,225.27,225.19,2.2208]
[1734306750900,9.28267752,225.27,225.15,3.22]
[1734306752500,2.2204,225.24,225.17,2.221]
[1734306752706,2.2204,225.24,225.15,3.22]
[1734306752707,9.28267752,225.27,225.15,3.22]
[1734306753404,9.28267752,225.24,225.14,5.41617232]
[1734306753602,9.28267752,225.24,225.06,9.28267752]
[1734306753806,2.221,225.18,225.11,2.2216]
[1734306754205,2.221,225.18,225.07,3.22]
[1734306754498,2.2208,225.2,225.12,2.2215]
[1734306754700,4.38,225.23,225.12,2.2215]
[1734306755305,4.38,225.23,225.13,5.24854196]
[1734306755498,2.2209,225.19,225.13,5.24854196]
[1734306755706,4.38,225.23,225.13,5.24854196]
[1734306756503,2.2206,225.22,225.13,5.24854196]
[1734306756999,2.859,225.23,225.13,5.24854196]
[1734306757200,1.4108,225.23,225.17,2.221]
[1734306758700,12.50267752,225.27,225.13,5.24854196]
[1734306758701,9.28267752,225.27,225.13,5.24854196]
[1734306758897,9.28267752,225.27,225.13,6.65604196]
[1734306759102,2.2202,225.26,225.13,6.65604196]
[1734306759505,9.28267752,225.27,225.17,2.221]
[1734306759807,2.2204,225.24,225.17,2.221]
[1734306760201,11.50307752,225.24,225.17,2.221]
[1734306760400,9.28267752,225.21,225.13,5.24854196]
[1734306761008,2.221,225.18,225.13,5.24854196]
[1734306761709,2.2209,225.2,225.13,5.24854196]
[1734306761911,9.28267752,225.21,225.13,5.24854196]
[1734306762105,9.28267752,225.21,225.11,2.2216]
[1734306763309,9.28267752,225.18,225.07,3.2]
[1734306763507,9.28267752,225.18,225.05,3.2]
[1734306764405,2.2213,225.15,225.08,5.3530704]
[1734306765704,9.28267752,225.15,225.03,52.69150467]
[1734306765905,1.5351,225.14,225.03,52.69150467]
[1734306766112,9.28267752,225.12,225.03,49.49150467]
[1734306766309,2.2218,225.1,225.03,49.49150467]
[1734306766510,2.2218,225.1,225.03,2.2224]
[1734306766707,4.5444,225.14,224.96,9.28267752]
[1734306766708,9.28267752,225.09,225.0,2.2227]
[1734306766912,9.28267752,225.09,224.96,3.2]
[1734306767211,9.28267752,225.09,224.98,2.2228]
[1734306767405,9.28267752,225.06,224.92,1.5345]
[1734306767611,9.28267752,225.03,224.93,4.98144252]
[1734306767815,9.28267752,225.03,224.89,3.2]
[1734306768012,2.2227,225.0,224.89,3.2]
[1734306768410,11.50537752,225.0,224.93,5.30150013]
[1734306768609,2.2228,224.99,224.9,2.2237]
[1734306768812,2.2228,224.99,224.87,10.81717752]
[1734306768813,2.2228,224.99,224.87,1.5345]
[1734306769018,9.28267752,224.94,224.82,2.9243]
[1734306769318,9.28267752,224.94,224.8,0.57346]
[1734306769615,2.8866,224.93,224.81,4.97749591]
[1734306769920,11.50627752,224.91,224.82,2.2244]
[1734306770315,11.50627752,224.91,224.85,5.32265315]
[1734306770714,9.28267752,224.91,224.85,5.32265315]
[1734306771316,2.8866,224.93,224.85,5.32265315]
[1734306771521,1.4382,224.93,224.85,5.32265315]
[1734306772213,9.28267752,224.97,224.85,5.32265315]
[1734306772418,12.48267752,224.97,224.85,5.32265315]
[1734306772616,12.48267752,224.97,224.89,2.2238]
[1734306773116,9.28267752,224.97,224.85,5.32265315]
[1734306773313,4.7246,224.99,224.91,2.2236]
[1734306774020,1.5246,224.99,224.91,2.2236]
[1734306774417,1.5246,224.99,224.92,2.2235]
[1734306774618,3.2,225.01,224.86,9.28267752]
[1734306774926,3.2,225.01,224.93,2.2234]
[1734306775112,3.2,225.01,224.87,14.39196076]
[1734306775113,10.79237752,225.03,224.89,12.48267752]
[1734306775312,10.79237752,225.03,224.9,4.96203779]
[1734306775512,10.79237752,225.03,224.91,4.96203779]
[1734306775723,10.79237752,225.03,224.92,4.96203779]
[1734306775919,1.5097,225.03,224.89,3.2]
[1734306776127,1.5097,225.03,224.9,4.96501309]
[1734306776315,1.4356,225.06,224.98,2.2229]
[1734306778521,3.0154,225.11,225.01,2.2226]
[1734306778522,5.2371,225.11,225.01,2.2226]
[1734306778717,5.2371,225.11,224.95,1.4008]
[1734306778921,3.0154,225.11,224.96,4.97485709]
[1734306779122,3.0154,225.11,225.04,2.2223]
[1734306780527,3.0154,225.11,225.0,3.2]
[1734306780821,3.0154,225.11,225.01,4.98441718]
[1734306781022,1.4284,225.1,224.95,1.4008]
[1734306781219,14.9124232,225.07,224.97,5.21447741]
[1734306781420,2.2223,225.05,224.97,5.21447741]
[1734306781621,14.9124232,225.07,224.97,5.21447741]
[1734306782028,5.4219,225.09,224.97,5.21447741]
[1734306782221,1.4284,225.1,224.98,4.9905759]
[1734306782420,1.4284,225.1,224.97,5.21447741]
[1734306782629,2.2222,225.06,224.97,7.43747741]
[1734306782828,1.4284,225.1,224.98,4.99391033]
[1734306783031,1.4284,225.1,224.97,5.21447741]
[1734306783032,3.2,225.09,224.97,5.21447741]
[1734306783227,2.2221,225.06,224.98,7.21682188]
[1734306783531,2.2221,225.06,224.98,2.2229]
[1734306783731,2.2221,225.06,224.97,7.43747741]
[1734306783927,14.9124232,225.07,224.98,4.99723504]
[1734306784129,14.9124232,225.03,224.86,14.9124232]
[1734306784427,18.1124232,225.03,224.9,13.00284609]
[1734306784631,18.1124232,225.03,224.91,13.00284609]
[1734306784832,18.1124232,225.03,224.92,13.00284609]
[1734306785035,18.1124232,225.03,224.93,5.00109465]
[1734306785229,2.2227,225.01,224.91,2.2235]
[1734306785424,18.1124232,225.03,224.94,5.00658726]
[1734306785726,18.1124232,225.03,224.91,2.2235]
[1734306785934,18.1124232,225.03,224.92,5.00697061]
[1734306786133,18.1124232,225.03,224.91,2.2235]
[1734306786330,3.2,225.03,224.92,13.03143632]
[1734306786635,3.2,225.03,224.93,13.03007083]
[1734306786836,3.2,225.03,224.94,5.01209846]
[1734306787037,3.2,225.03,224.95,5.01209846]
[1734306787233,3.2,225.03,224.96,5.01209846]
[1734306787433,3.2,225.03,224.96,2.2231]
[1734306787633,3.2,225.03,224.97,5.01379219]
[1734306787836,14.9124232,225.07,224.98,5.01306062]
[1734306788038,2.2223,225.05,224.99,5.01251958]
[1734306788235,2.2223,225.05,224.9,14.9124232]
[1734306788436,18.1124232,225.07,224.91,14.47115729]
[1734306788735,2.2222,225.06,224.98,2.2229]
[1734306788936,2.2222,225.06,224.99,5.01498357]
[1734306789237,3.2,225.07,224.93,3.2]
[1734306789428,18.1124232,225.07,224.94,5.01574382]
[1734306789630,18.1124232,225.07,224.95,5.01574382]
[1734306789833,18.1124232,225.07,224.96,5.01574382]
[1734306790132,14.9124232,225.07,224.91,4.6322]
[1734306790337,2.222,225.08,224.99,2.2228]
[1734306790528,3.2,225.09,224.91,4.6322]
[1734306790733,3.2,225.09,224.92,14.46254298]
[1734306790934,3.2,225.09,224.93,13.04754298]
[1734306791137,3.2,225.09,225.01,2.2226]
[1734306791533,1.4284,225.1,225.03,2.2224]
[1734306791738,182.89669311,225.27,224.98,14.9124232]
[1734306792040,2.2213,225.15,225.07,2.222]
[1734306792232,14.9124232,225.17,225.0,1.459]
[1734306792431,1.528,225.16,225.01,13.0680376]
[1734306792741,2.2214,225.14,225.07,2.222]
[1734306793034,2.2214,225.14,225.0,1.459]
[1734306793340,2.2214,225.14,225.01,13.06934123]
[1734306793639,1.528,225.16,225.02,5.0266697]
[1734306793838,1.528,225.16,225.03,13.07432073]
[1734306794039,1.528,225.16,225.07,2.222]
[1734306794233,1.528,225.16,225.05,3.2]
[1734306794234,2.2214,225.14,225.05,3.2]
[1734306794838,2.2214,225.14,225.05,5.4221]
[1734306795038,2.2214,225.14,225.05,3.2]
[1734306795433,1.528,225.16,225.05,3.2]
[1734306795843,1.528,225.16,225.04,5.33588193]
[1734306797043,2.2217,225.11,225.04,5.33588193]
[1734306798445,2.2217,225.11,225.01,3.2]
[1734306798446,18.1124232,225.14,224.98,1.5287]
[1734306798638,1.5111,225.1,224.97,3.2]
[1734306798937,1.5111,225.1,225.01,5.38948032]
[1734306799141,2.2219,225.09,225.01,5.38948032]
[1734306799837,1.4633,225.22,225.06,14.9124232]
[1734306800342,3.2,225.21,225.07,3.2]
[1734306800538,2.2211,225.17,225.07,3.2]
[1734306800844,3.2,225.2,225.07,3.2]
[1734306801243,3.2,225.2,225.08,2.2218]
[1734306801545,18.1124232,225.2,225.03,4.6617]
[1734306801942,2.2212,225.16,225.07,2.222]
[1734306802545,2.2212,225.16,225.08,2.2219]
[1734306802839,1.4633,225.22,225.09,3.2]
[1734306803049,1.4633,225.22,225.1,3.2]
[1734306803349,1.4633,225.22,225.15,2.2212]
[1734306803739,1.4633,225.22,225.1,3.2]
[1734306803940,1.4633,225.22,225.13,2.2214]
[1734306803941,2.2207,225.21,225.13,2.2214]
[1734306804248,1.4633,225.22,225.1,3.2]
[1734306805446,2.2209,225.19,225.11,2.2216]
[1734306808652,2.2209,225.19,225.12,2.2215]
[1734306809141,1.4633,225.22,225.15,2.2212]
[1734306809347,1.4633,225.22,225.1,3.2]
[1734306809746,1.4633,225.22,225.08,2.2219]
[1734306809747,2.221,225.18,225.08,2.2219]
[1734306809946,14.9124232,225.2,225.06,3.18]
[1734306810148,3.18,225.19,225.06,3.18]
[1734306810554,3.18,225.19,225.03,1.4617]
[1734306810852,3.18,225.19,225.04,3.18]
[1734306811051,3.18,225.19,225.03,1.4617]
[1734306811052,2.2214,225.13,225.05,2.2222]
[1734306812460,2.2216,225.11,225.02,1.4326]
[1734306813152,3.18,225.12,225.01,5.38948032]
[1734306813455,1.4254,225.11,225.01,5.38948032]
[1734306814355,2.2219,225.09,225.01,7.61208032]
[1734306814553,2.8734,225.11,225.01,7.61208032]
[1734306814949,2.2218,225.09,225.01,7.61208032]
[1734306815954,2.8734,225.11,224.98,2.2228]
[1734306816951,2.222,225.08,224.98,2.2228]
[1734306817150,2.8734,225.11,224.98,2.2228]
[1734306817955,2.8734,225.11,225.0,2.2227]
[1734306817956,2.2221,225.07,225.0,2.2227]
[1734306818453,2.8734,225.11,224.97,9.31571106]
[1734306818659,2.8734,225.11,225.03,2.2224]
[1734306819257,1.4254,225.11,225.05,2.2222]
[1734306819453,1.4254,225.11,225.01,3.2]
[1734306819656,1.4254,225.11,225.0,9.31571106]
[1734306820357,10.81701106,225.15,225.03,9.31571106]
[1734306820655,32.5565316,225.22,225.06,9.31571106]
[1734306820656,1.4263,225.21,225.06,9.31571106]
[1734306820859,1.4263,225.21,225.06,12.51571106]
[1734306821060,2.2211,225.17,225.09,2.2218]
[1734306821251,2.2211,225.17,225.06,12.51571106]
[1734306821456,9.31571106,225.19,225.06,12.51571106]
[1734306822260,2.221,225.18,225.1,2.2217]
[1734306822562,1.4263,225.21,225.1,2.2217]
[1734306822868,10.74201106,225.21,225.1,2.2217]
[1734306823055,1.4263,225.21,225.1,2.2217]
[1734306823260,1.4263,225.21,225.06,12.51571106]
[1734306823261,2.2209,225.19,225.11,2.2216]
[1734306823460,1.4263,225.21,225.11,2.2216]
[1734306823660,2.2211,225.17,225.09,2.2218]
[1734306823962,2.2211,225.17,225.06,12.51571106]
[1734306823963,1.4263,225.21,225.06,3.2]
[1734306824861,2.221,225.18,225.1,2.2217]
[1734306825463,2.2208,225.2,225.11,2.2216]
[1734306825968,2.2208,225.2,225.1,2.2217]
[1734306826268,2.2208,225.2,225.06,3.2]
[1734306826462,2.2209,225.19,225.06,3.2]
[1734306826661,1.4263,225.21,225.14,2.2213]
[1734306827263,1.4263,225.21,225.11,5.37891884]
[1734306827468,1.4263,225.21,225.13,2.2214]
[1734306828168,1.4263,225.21,225.14,2.2213]
[1734306829866,3.647,225.21,225.14,2.2213]
[1734306833068,2.221,225.18,225.11,7.60051884]
[1734306833966,1.4263,225.21,225.11,5.37891884]
[1734306834269,2.2211,225.17,225.11,5.37891884]
[1734306837265,1.4263,225.21,225.11,5.37891884]
[1734306838067,3.647,225.21,225.14,2.2213]
[1734306839867,3.647,225.21,225.13,2.2214]
[1734306840067,1.4263,225.21,225.11,5.37891884]
[1734306840571,2.2211,225.17,225.11,5.37891884]
[1734306841071,1.4263,225.21,225.06,3.18]
[1734306841072,2.2212,225.16,225.08,2.2219]
[1734306841274,14.88982327,225.2,225.05,1.5515]
[1734306841465,14.88982327,225.2,225.04,2.9043]
[1734306841879,14.88982327,225.16,225.04,2.9043]
[1734306842174,18.06982327,225.16,225.04,2.9043]
[1734306842575,3.18,225.16,225.04,2.9043]
[1734306843076,2.2215,225.13,225.06,2.2221]
[1734306843277,3.18,225.16,225.06,2.2221]
[1734306843970,9.31253714,225.14,224.98,12.49253714]
[1734306844169,9.31253714,225.11,224.98,3.18]
[1734306844567,2.222,225.08,225.01,2.2226]
[1734306845376,1.4128,225.12,224.98,9.31253714]
[1734306845377,3.6344,225.12,224.98,9.31253714]
[1734306845576,1.4128,225.12,224.98,9.31253714]
[1734306846278,3.6344,225.12,225.04,2.2223]
[1734306848784,3.6344,225.12,224.98,9.31253714]
[1734306848785,2.2218,225.1,225.03,2.2224]
[1734306849476,9.31253714,225.11,225.01,2.2225]
[1734306850282,2.2219,225.09,225.01,2.2225]
[1734306851386,1.4128,225.12,224.98,9.31253714]
[1734306852084,3.6343,225.12,225.02,2.2224]
[1734306852284,3.6343,225.12,224.98,9.31253714]
[1734306852789,3.6343,225.12,225.05,2.2222]
[1734306853884,2.2217,225.11,225.03,2.2224]
[1734306854090,2.2217,225.11,224.98,9.31253714]
[1734306854792,2.2217,225.11,225.04,2.2222]
[1734306856089,182.89669311,225.23,225.01,9.31253714]
[1734306856090,9.31253714,225.17,225.01,9.31253714]
[1734306856292,9.31253714,225.17,224.96,4.6627]
[1734306856293,3.16,225.19,225.04,9.31253714]
[1734306856494,2.2211,225.17,225.08,2.2219]
[1734306856694,12.47253714,225.2,225.04,9.31253714]
[1734306857195,12.47253714,225.2,225.04,10.71743714]
[1734306858194,2.2212,225.16,225.09,2.2218]
[1734306858892,9.31253714,225.17,224.79,15.03187958]
[1734306859090,2.2216,225.12,225.0,12.47253714]
[1734306859294,12.47253714,225.14,225.0,12.47253714]
[1734306859497,2.2217,225.1,225.0,12.47253714]
[1734306859706,9.31253714,225.11,224.97,2.9237]
[1734306860296,2.2221,225.06,224.98,2.2228]
[1734306860597,12.47253714,225.08,224.93,9.31253714]
[1734306860804,9.31253714,225.02,224.88,3.16]
[1734306861007,9.31253714,225.02,224.89,13.08424719]
[1734306861202,12.47253714,225.02,224.87,9.31253714]
[1734306861396,2.2228,224.99,224.92,2.2234]
[1734306861596,2.2228,224.99,224.94,0.33795]
[1734306862000,12.47253714,225.02,224.94,2.56125]
[1734306862001,3.16,225.02,224.94,2.56125]
[1734306862204,3.16,225.02,224.94,0.33795]
[1734306862400,9.31253714,225.05,224.94,0.33795]
[1734306862401,12.47253714,225.05,224.94,0.33795]
[1734306862703,3.16,225.05,224.94,0.33795]
[1734306863403,5.3823,225.05,224.98,2.2229]
[1734306863800,3.16,225.05,224.96,9.31253714]
[1734306864000,3.16,225.05,224.99,2.2228]
[1734306864407,2.2221,225.07,224.99,2.2228]
[1734306865104,3.16,225.09,224.95,9.31253714]
[1734306865306,2.222,225.08,225.0,2.2227]
[1734306866901,3.16,225.09,225.0,2.2227]
[1734306867207,2.222,225.07,225.0,2.2227]
[1734306869406,2.2222,225.06,224.99,2.2228]
[1734306870210,2.2226,225.01,224.94,2.56115]
[1734306870502,9.31253714,224.98,224.94,0.33795]
[1734306870700,2.2232,224.95,224.94,0.33795]
[1734306870906,2.2232,224.95,224.87,2.224]
[1734306871208,9.31253714,224.95,224.85,1.4305]
[1734306871409,2.2233,224.94,224.85,1.4305]
[1734306871811,2.2233,224.94,224.88,5.43141174]
[1734306873209,9.31253714,224.95,224.8,12.36703714]
[1734306873415,9.31253714,224.92,224.8,1.5391]
[1734306873604,9.31253714,224.89,224.77,8.03742352]
[1734306873804,12.47253714,224.89,224.76,1.4399]
[1734306874006,9.31253714,224.86,224.72,3.16]
[1734306874207,9.31253714,224.86,224.77,5.32514383]
[1734306874806,9.31253714,224.86,224.71,12.47253714]
[1734306875009,2.2244,224.83,224.73,2.2253]
[1734306875811,2.2244,224.83,224.74,2.2253]
[1734306876824,18.09569073,224.89,224.71,3.16]
[1734306877308,2.2241,224.86,224.71,3.16]
[1734306877711,2.2241,224.86,224.75,5.30774336]
[1734306878313,2.2241,224.86,224.77,2.225]
[1734306879009,3.16,224.87,224.77,2.225]
[1734306879315,3.16,224.87,224.75,5.30774336]
[1734306879617,2.2245,224.83,224.73,2.2254]
[1734306879819,3.16,224.87,224.7,1.4234]
[1734306880313,2.2242,224.85,224.76,2.2251]
[1734306880518,3.16,224.87,224.76,2.2251]
[1734306881415,2.2243,224.84,224.76,2.2251]
[1734306883322,2.2243,224.84,224.73,5.46641844]
[1734306884219,14.93569073,224.85,224.73,5.46641844]
[1734306884412,14.93569073,224.81,224.61,14.93569073]
[1734306884615,7.571,224.8,224.62,8.16175924]
[1734306884817,7.571,224.8,224.63,5.00175924]
[1734306885015,2.2256,224.71,224.61,2.2265]
[1734306885216,3.16,224.72,224.61,2.2265]
[1734306885422,3.16,224.72,224.57,4.5526]
[1734306885722,2.2258,224.7,224.63,2.2264]
[1734306885923,2.2258,224.7,224.63,7.49137127]
[1734306886722,3.16,224.72,224.63,5.26497127]
[1734306886923,5.3856,224.72,224.64,2.2263]
[1734306887123,3.16,224.72,224.63,5.26497127]
[1734306887519,3.16,224.72,224.64,2.2263]
[1734306888225,2.2256,224.71,224.63,7.49137127]
[1734306889023,18.09569073,224.73,224.57,3.0344]
[1734306889230,18.09569073,224.73,224.57,1.5383]
[1734306889231,14.93569073,224.69,224.57,1.5383]
[1734306889422,14.93569073,224.69,224.52,3.16]
[1734306889423,1.4342,224.68,224.51,3.0364]
[1734306889622,2.2267,224.6,224.51,1.5342]
[1734306889825,3.16,224.61,224.51,1.5342]
[1734306890019,5.3867,224.61,224.52,2.2275]
[1734306890928,5.3867,224.61,224.55,0.59297]
[1734306891230,3.16,224.61,224.55,0.59297]
[1734306892226,2.2273,224.54,224.45,2.2282]
[1734306892427,3.16,224.55,224.46,5.47897285]
[1734306892624,14.93569073,224.6,224.46,5.47897285]
[1734306892926,3.16,224.59,224.46,5.47897285]
[1734306893124,2.2271,224.56,224.46,7.70697285]
[1734306894027,2.2271,224.56,224.47,2.2279]
[1734306894225,14.93569073,224.6,224.46,5.47897285]
[1734306894531,3.16,224.59,224.51,2.2276]
[1734306894732,3.16,224.59,224.46,5.47897285]
[1734306895024,3.16,224.59,224.49,2.2277]
[1734306895332,3.16,224.59,224.46,5.47897285]
[1734306895631,3.16,224.59,224.48,2.2278]
[1734306895827,3.16,224.59,224.46,5.47897285]
[1734306896126,9.36215731,224.5,224.4,2.2286]
[1734306896328,12.52215731,224.5,224.37,47.61819938]
[1734306896623,12.52215731,224.5,224.41,5.45428519]
[1734306897234,9.36215731,224.47,224.37,2.2289]
[1734306897822,9.36215731,224.47,224.38,5.46152277]
[1734306898028,15.01932987,224.52,224.18,7.9182507]
[1734306898221,15.01932987,224.22,224.03,3.16]
[1734306898425,15.01932987,224.22,224.04,11.07072516]
[1734306898623,15.01932987,224.22,224.04,3.16]
[1734306899025,15.01932987,224.22,224.0,16.01932987]
[1734306899331,2.2309,224.18,224.06,2.232]
[1734306899534,2.2309,224.18,224.07,3.16]
[1734306899927,2.2309,224.18,224.05,5.3921]
[1734306900131,2.2309,224.18,224.05,2.2321]
[1734306900439,15.01932987,224.14,224.01,3.16]
[1734306900625,2.2315,224.12,224.01,3.16]
[1734306901037,2.2316,224.11,224.01,3.16]
[1734306901239,2.2316,224.11,224.0,1.0]
[1734306901433,15.01932987,224.14,224.0,4.16]
[1734306901626,15.01932987,224.14,224.0,1.0]
[1734306901627,2.2316,224.11,224.0,1.0]
[1734306902331,18.17932987,224.1,224.0,1.0]
[1734306902532,15.01932987,224.06,224.0,1.0]
[1734306903135,3.16,224.1,224.0,1.0]
[1734306903430,3.16,224.16,224.0,1.0]
[1734306903635,2.2302,224.25,224.02,15.01932987]
[1734306903930,2.8231,224.35,224.1,15.01932987]
[1734306904134,15.01932987,224.31,224.11,3.16]
[1734306904542,3.16,224.42,224.14,15.01932987]
[1734306904834,3.16,224.42,224.15,1.4626]
[1734306904835,15.01932987,224.38,224.15,1.4626]
[1734306905037,15.01932987,224.38,224.16,3.16]
[1734306905230,5.3490412,224.36,224.18,15.01932987]
[1734306905439,1.4032,224.41,224.18,15.01932987]
[1734306905730,3.6318,224.41,224.3,2.2296]
[1734306905932,6.66118001,224.41,224.27,3.16]
[1734306906433,1.4032,224.41,224.27,3.16]
[1734306906940,1.4032,224.41,224.28,3.16]
[1734306907333,2.2287,224.4,224.28,5.3898]
[1734306907537,2.2287,224.4,224.28,3.16]
[1734306907739,1.4032,224.41,224.23,1.5523]
[1734306907935,1.4032,224.41,224.24,27.52635017]
[1734306908334,3.16,224.42,224.24,27.52635017]
[1734306908835,3.16,224.42,224.28,24.36635017]
[1734306909032,24.36635017,224.45,224.29,4.6292]
[1734306909231,5.37567908,224.46,224.29,4.6292]
[1734306909232,24.36635017,224.41,224.29,4.6292]
[1734306910141,2.2287,224.4,224.29,1.4692]
[1734306910340,2.2287,224.4,224.29,4.6292]
[1734306910532,2.2287,224.4,224.3,5.39655654]
[1734306912834,24.36635017,224.41,224.3,5.39655654]
[1734306913038,24.36635017,224.41,224.29,3.6989]
[1734306913237,24.36635017,224.37,224.23,1.5523]
[1734306913440,24.36635017,224.33,224.23,1.5523]
[1734306913735,27.52635017,224.57,224.39,2.2287]
[1734306913938,3.16,224.56,224.39,2.2287]
[1734306914234,4.5855,224.56,224.39,2.2287]
[1734306914434,1.4255,224.56,224.39,2.2287]
[1734306914633,8.55249118,224.55,224.39,2.2287]
[1734306915037,3.16,224.54,224.41,2.2285]
[1734306915341,3.16,224.54,224.36,24.36635017]
[1734306916237,3.16,224.54,224.37,1.5141]
[1734306916944,5.3873,224.54,224.37,1.5141]
[1734306917440,3.16,224.54,224.45,5.26846366]
[1734306917634,6.8126,224.56,224.45,7.49666366]
[1734306917830,4.5855,224.56,224.45,7.49666366]
[1734306918037,4.5855,224.56,224.45,5.26846366]
[1734306918443,2.2272,224.55,224.45,5.26846366]
[1734306918938,3.16,224.56,224.45,5.26846366]
[1734306919341,2.2273,224.54,224.45,5.26846366]
[1734306919642,3.16,224.56,224.37,1.5141]
[1734306921238,3.16,224.56,224.41,5.39658995]
[1734306921439,1.5522,224.55,224.41,5.39658995]
[1734306921634,2.2278,224.49,224.41,5.39658995]
[1734306921835,3.16,224.5,224.41,5.39658995]
[1734306922241,5.44290193,224.6,224.42,3.16]
[1734306922542,3.16,224.57,224.44,24.36635017]
[1734306922747,3.16,224.57,224.45,2.2281]
[1734306922748,2.2273,224.55,224.45,2.2281]
[1734306922944,3.16,224.57,224.41,5.39658995]
[1734306923252,2.2275,224.53,224.41,5.39658995]
[1734306923446,1.5522,224.56,224.41,5.39658995]
[1734306923648,4.7122,224.56,224.41,5.39658995]
[1734306923939,3.16,224.56,224.41,5.39658995]
[1734306924144,2.2273,224.54,224.45,2.2281]
[1734306924445,3.16,224.56,224.41,5.39658995]
[1734306924644,2.2266,224.61,224.51,2.2275]
[1734306924850,3.16,224.62,224.48,24.36635017]
[1734306925144,1.5478,224.68,224.48,24.36635017]
[1734306925145,3.16,224.63,224.49,1.4109]
[1734306925346,3.16,224.63,224.53,2.2273]
[1734306925548,3.16,224.63,224.49,1.4109]
[1734306925937,2.2272,224.56,224.49,1.4109]
[1734306926443,2.2272,224.56,224.47,1.4711]
[1734306926646,24.36635017,224.61,224.47,1.4711]
[1734306926843,3.16,224.63,224.47,1.4711]
[1734306927053,2.2268,224.59,224.5,2.2276]
[1734306927544,2.2271,224.57,224.48,2.2278]
[1734306927740,3.16,224.63,224.48,2.2278]
[1734306928536,3.16,224.63,224.47,1.4711]
[1734306929543,2.2272,224.55,224.47,1.4711]
[1734306930743,2.2273,224.54,224.47,1.4711]
[1734306931050,3.16,224.56,224.43,1.4109]
[1734306931345,18.13077237,224.56,224.43,1.4109]
[1734306931947,2.2276,224.51,224.43,3.6393]
[1734306932243,18.13077237,224.56,224.43,1.4109]
[1734306932641,3.16,224.56,224.43,1.4109]
[1734306933355,3.16,224.56,224.46,2.228]
[1734306933748,5.31525315,224.66,224.43,16.38167237]
[1734306933749,3.16,224.59,224.43,16.38167237]
[1734306933948,3.16,224.59,224.44,4.91438784]
[1734306934247,3.16,224.59,224.43,16.38167237]
[1734306934446,3.16,224.59,224.45,3.16]